bitfinex-derivatives/quotes_SOLF0:USTF0_20250625
["timestamp","ask_amount","ask_price","bid_price","bid_amount"]
[1750853350026,7.0266566,146.03,146.02,13.19151936]
[1750853350723,7.02651794,146.03,146.02,13.19151936]
[1750853350916,2.15996023,146.03,146.02,13.19151936]
[1750853351120,7.02651794,146.03,146.02,13.19151936]
[1750853353520,2.15996023,146.03,146.02,13.19151936]
[1750853353722,7.02518964,146.03,146.02,13.19151936]
[1750853354221,7.02518964,146.03,146.02,6.8453]
[1750853355522,2.15996023,146.03,146.02,6.8453]
[1750853355722,7.03612869,146.03,146.02,6.8453]
[1750853356723,7.03619236,146.03,146.02,6.8453]
[1750853357122,2.15996023,146.03,146.02,6.8453]
[1750853357322,7.03667647,146.03,146.02,6.8453]
[1750853358937,7.03678536,146.03,146.02,6.8453]
[1750853363936,7.03683879,146.03,146.02,6.8453]
[1750853366851,11.33218146,146.03,146.02,6.8453]
[1750853367449,9.17211234,146.03,146.02,6.8453]
[1750853367655,11.33218146,146.03,146.02,6.8453]
[1750853367950,7.03683879,146.03,146.02,6.8453]
[1750853369251,7.03749033,146.03,146.02,6.8453]
[1750853370853,11.33352103,146.03,146.02,6.8453]
[1750853371146,6.45609982,146.03,146.02,6.8453]
[1750853371354,11.33404831,146.03,146.02,6.8453]
[1750853374358,7.03801761,146.03,146.02,6.8453]
[1750853375253,2.16006912,146.03,146.02,15.26822257]
[1750853376855,35.12,146.05,146.02,8.42292257]
[1750853377056,37.28006912,146.05,146.04,6.3807443]
[1750853377548,37.28006912,146.05,146.04,13.2250443]
[1750853378156,37.28006912,146.05,146.04,6.8443]
[1750853378354,37.27931914,146.05,146.04,6.8443]
[1750853379151,37.27989671,146.05,146.03,15.26772257]
[1750853379347,2.15989671,146.04,146.03,15.26772257]
[1750853380255,2.15989671,146.04,146.01,12.63438385]
[1750853380256,2.15989671,146.04,146.02,15.26792257]
[1750853380656,9.00429671,146.04,146.02,15.26792257]
[1750853381152,4.88232416,146.03,146.02,15.26792257]
[1750853382952,9.18186222,146.03,146.02,15.26792257]
[1750853383157,4.88232416,146.03,146.02,15.26792257]
[1750853386458,4.87987455,146.03,146.02,15.26792257]
[1750853386962,9.17470088,146.03,146.01,8.42292257]
[1750853387260,7.03977126,146.02,146.01,8.42292257]
[1750853387455,7.03977126,146.02,146.01,15.26862257]
[1750853387960,7.04053775,146.02,146.01,15.26862257]
[1750853389252,7.03316176,146.02,146.0,8.42292257]
[1750853389457,46.12848161,146.01,145.99,8.42292257]
[1750853389650,46.12852945,146.0,145.97,8.51332742]
[1750853389952,2.1606632,145.98,145.93,12.63438385]
[1750853390155,2.1606632,145.94,145.9,12.63438385]
[1750853390356,2.1606632,145.91,145.9,19.48528385]
[1750853390554,2.1606632,145.91,145.9,6.8509]
[1750853392462,3.38064949,145.92,145.91,6.8504]
[1750853397069,8.44050726,145.92,145.91,6.8504]
[1750853397465,8.44050726,145.92,145.9,6.8507]
[1750853397661,3.38064949,145.91,145.9,6.8507]
[1750853398061,8.44005651,145.91,145.9,6.8507]
[1750853398258,3.38064949,145.91,145.9,6.8507]
[1750853401167,20.5287,146.08,145.87,4.5937]
[1750853401367,3.38064949,145.94,145.87,4.5937]
[1750853401674,3.38064949,145.92,145.87,4.5937]
[1750853401870,38.18064949,145.92,145.87,4.5937]
[1750853402174,38.18064949,145.92,145.91,6.8504]
[1750853402478,38.18064949,145.92,145.87,4.5937]
[1750853403174,3.38064949,145.9,145.87,4.5937]
[1750853403369,3.38064949,145.9,145.89,6.851]
[1750853411478,34.8,145.92,145.9,6.8504]
[1750853411678,3.38064949,145.91,145.9,6.8504]
[1750853413786,34.8,145.92,145.91,6.8504]
[1750853413985,3.38064949,145.93,145.88,2.3376]
[1750853414582,3.38064949,145.93,145.92,6.85]
[1750853425595,3.38064949,145.93,145.87,4.5937]
[1750853425797,3.38064949,145.9,145.87,4.5937]
[1750853425997,38.14064949,145.9,145.87,4.5937]
[1750853426198,38.14064949,145.9,145.89,6.8512]
[1750853426691,38.14064949,145.9,145.87,4.5937]
[1750853427092,38.14064949,145.9,145.88,6.8518]
[1750853427602,38.14064949,145.9,145.89,6.8514]
[1750853431206,43.17908821,145.9,145.89,6.8514]
[1750853432999,43.1941627,145.9,145.89,6.8514]
[1750853433204,47.71388052,145.9,145.89,6.8514]
[1750853436003,47.70722804,145.9,145.89,6.8514]
[1750853436404,42.66036731,145.9,145.89,6.8514]
[1750853436605,47.70721806,145.9,145.89,6.8514]
[1750853438307,46.49065165,145.9,145.89,6.8514]
[1750853438903,46.48648297,145.9,145.89,6.8514]
[1750853444609,46.48648297,145.9,145.87,10.70655068]
[1750853444610,46.48648297,145.9,145.87,8.42875068]
[1750853444814,2.16408308,145.88,145.86,8.42875068]
[1750853445113,2.16408308,145.87,145.86,8.42875068]
[1750853445511,2.16408308,145.87,145.86,15.28155068]
[1750853445713,2.1648226,145.87,145.86,15.28155068]
[1750853446907,11.7394799,145.87,145.83,8.53731677]
[1750853447114,2.16505212,145.84,145.83,8.53731677]
[1750853447308,2.16505212,145.84,145.81,136.45210149]
[1750853447508,2.16505212,145.82,145.81,143.30720149]
[1750853447912,2.16505212,145.82,145.81,130.67281764]
[1750853448313,3.38445504,145.84,145.83,6.8541]
[1750853448514,8.44002127,145.84,145.83,6.8541]
[1750853448714,3.38445504,145.84,145.83,6.8541]
[1750853450013,3.38445504,145.84,145.79,12.63438385]
[1750853450014,8.43372458,145.84,145.79,12.63438385]
[1750853450208,3.38445504,145.82,145.78,17.34498385]
[1750853450518,3.38445504,145.82,145.81,6.8551]
[1750853451406,3.38445504,145.82,145.77,2.4026]
[1750853451616,4.50902409,145.83,145.73,12.63438385]
[1750853451617,3.38445504,145.79,145.73,12.63438385]
[1750853452111,3.38445504,145.79,145.77,6.8567]
[1750853453016,3.38445504,145.79,145.78,6.8565]
[1750853454210,34.7,145.81,145.72,19.79508385]
[1750853454411,3.38445504,145.79,145.72,7.1607]
[1750853455217,3.38445504,145.79,145.78,6.8565]
[1750853466619,6.8565,145.78,145.72,7.1607]
[1750853466828,3.38445504,145.76,145.72,7.1607]
[1750853467118,3.38445504,145.76,145.75,6.8575]
[1750853467315,3.38445504,145.76,145.72,7.1607]
[1750853467718,3.38445504,145.74,145.68,123.39778071]
[1750853468020,3.38445504,145.76,145.67,7.1013]
[1750853468021,3.38445504,145.72,145.67,7.1013]
[1750853468221,10.24385504,145.72,145.69,6.8603]
[1750853468618,3.38445504,145.7,145.61,47.35438385]
[1750853468821,3.38445504,145.68,145.63,4.6536]
[1750853469018,3.38445504,145.68,145.67,6.8615]
[1750853469217,3.38445504,145.68,145.63,4.6536]
[1750853469415,41.581,145.69,145.66,6.862]
[1750853469622,3.38445504,145.67,145.66,6.862]
[1750853469820,3.38445504,145.67,145.57,34.64]
[1750853470131,3.38445504,145.62,145.58,6.9506]
[1750853470520,3.38445504,145.66,145.58,10.33505504]
[1750853471128,3.38445504,145.66,145.58,6.9506]
[1750853471427,3.38445504,145.66,145.65,6.8627]
[1750853473319,34.64,145.67,145.66,6.8622]
[1750853474126,34.64,145.67,145.59,3.38445504]
[1750853474425,3.38445504,145.66,145.65,6.8627]
[1750853475519,34.64,145.67,145.66,6.8622]
[1750853475718,38.02445504,145.67,145.66,6.8622]
[1750853477423,38.02445504,145.67,145.65,6.8626]
[1750853478527,38.02445504,145.67,145.6,3.38445504]
[1750853478917,38.02445504,145.67,145.66,6.8622]
[1750853479829,38.02445504,145.67,145.65,6.8625]
[1750853480221,38.02445504,145.67,145.66,6.8622]
[1750853481818,34.64,145.67,145.66,6.8622]
[1750853482021,34.66,145.7,145.62,3.38445504]
[1750853482623,34.66,145.7,145.69,6.8608]
[1750853484022,38.04445504,145.7,145.69,6.8608]
[1750853484928,44.90475504,145.7,145.65,7.0635]
[1750853485628,3.38445504,145.68,145.67,6.8614]
[1750853486828,34.66,145.7,145.69,6.8608]
[1750853490436,3.38445504,145.76,145.67,3.38445504]
[1750853490835,3.38445504,145.76,145.74,6.858]
[1750853491046,3.38445504,145.76,145.67,3.38445504]
[1750853491240,3.38445504,145.76,145.69,3.38445504]
[1750853491436,3.38445504,145.76,145.75,6.8579]
[1750853491633,3.38445504,145.76,145.7,2.3127]
[1750853492238,3.38445504,145.76,145.74,6.858]
[1750853493141,3.38445504,145.76,145.75,6.8579]
[1750853493339,34.66,145.77,145.71,4.515]
[1750853493528,34.66,145.77,145.71,7.89945504]
[1750853495344,34.66,145.77,145.76,6.8575]
[1750853501743,47.37601959,145.81,145.73,3.38445504]
[1750853502045,38.00445504,145.81,145.73,3.38445504]
[1750853502251,44.85995504,145.81,145.79,6.856]
[1750853502642,38.00445504,145.81,145.73,3.38445504]
[1750853503250,38.00445504,145.81,145.8,6.8556]
[1750853505349,34.62,145.81,145.8,6.8556]
[1750853506749,34.62,145.84,145.83,6.854]
[1750853509447,38.00445504,145.87,145.86,6.8528]
[1750853510251,38.00445504,145.87,145.78,34.62]
[1750853510446,3.38445504,145.84,145.78,34.62]
[1750853510651,34.62,145.87,145.78,34.62]
[1750853510652,41.4726,145.87,145.78,34.62]
[1750853510853,3.38445504,145.86,145.78,34.62]
[1750853511761,34.62,145.87,145.79,3.38445504]
[1750853511952,34.62,145.87,145.81,3.38445504]
[1750853512252,630.44445504,145.9,145.83,3.38445504]
[1750853513161,630.44445504,145.9,145.83,5.75255504]
[1750853513653,630.44445504,145.9,145.87,6.852]
[1750853513857,3.38445504,145.88,145.83,2.3681]
[1750853515252,10.23625504,145.88,145.85,6.8532]
[1750853516063,3.38445504,145.89,145.86,6.8527]
[1750853516259,3.38445504,145.89,145.83,2.3681]
[1750853516461,627.06,145.9,145.88,6.8514]
[1750853517057,133.12,145.93,145.83,7.95875504]
[1750853517058,34.6,145.93,145.85,3.38445504]
[1750853517360,37.98445504,145.93,145.85,3.38445504]
[1750853517556,37.98445504,145.93,145.91,6.8503]
[1750853517750,37.98445504,145.93,145.85,3.38445504]
[1750853517955,3.38445504,145.93,145.86,34.6]
[1750853518156,3.38445504,145.95,145.93,6.8492]
[1750853518458,11.92637218,145.97,145.93,6.8492]
[1750853518459,34.6,145.94,145.93,6.8492]
[1750853519964,34.6,145.94,145.92,6.8498]
[1750853520363,3.38445504,145.93,145.87,2.2675]
[1750853520566,3.38445504,145.93,145.91,6.8504]
[1750853520864,34.6,145.94,145.87,2.2675]
[1750853521071,34.6,145.94,145.88,3.38445504]
[1750853521758,34.6,145.94,145.93,6.8495]
[1750853522159,41.4493,145.94,145.87,2.2675]
[1750853522460,3.38445504,145.93,145.87,2.2675]
[1750853523562,34.6,145.94,145.92,6.8497]
[1750853523868,37.98445504,145.94,145.88,3.38445504]
[1750853524068,34.6,145.94,145.88,3.38445504]
[1750853524264,34.6,145.94,145.93,6.8495]
[1750853525367,34.6,145.94,145.92,6.8499]
[1750853525570,37.98445504,145.94,145.87,2.2675]
[1750853525868,3.38445504,145.92,145.91,6.8504]
[1750853527368,3.38445504,145.92,145.9,6.8507]
[1750853527672,3.38445504,145.92,145.85,4.6001]
[1750853527871,3.38445504,145.9,145.85,2.3523]
[1750853528166,37.96445504,145.9,145.88,6.8515]
[1750853528356,37.96445504,145.93,145.85,5.73675504]
[1750853528557,37.96445504,145.93,145.91,6.8501]
[1750853528754,37.96445504,145.93,145.85,5.73675504]
[1750853528959,34.58,145.93,145.87,3.38445504]
[1750853529160,34.58,145.93,145.92,6.85]
[1750853532762,39.68142133,145.93,145.92,6.85]
[1750853532963,37.96445504,145.93,145.92,6.85]
[1750853533163,43.06587637,145.93,145.92,6.85]
[1750853533374,43.07006679,145.93,145.92,6.85]
[1750853533973,37.96445504,145.93,145.92,6.85]
[1750853534575,43.12951824,145.93,145.92,6.85]
[1750853535076,49.97901824,145.93,145.85,5.73675504]
[1750853535375,5.1650632,145.92,145.85,5.73675504]
[1750853535563,37.96445504,145.93,145.85,5.73675504]
[1750853535766,5.17531869,145.92,145.91,6.8502]
[1750853536171,37.96445504,145.93,145.91,6.8502]
[1750853536368,5.17558706,145.92,145.91,6.8502]
[1750853536675,5.17558706,145.92,145.85,2.3523]
[1750853536863,8.5600421,145.91,145.85,2.3523]
[1750853537068,3.38445504,145.91,145.85,2.3523]
[1750853537267,3.38445504,145.91,145.89,6.8511]
[1750853537667,41.4297,145.93,145.84,5.72035504]
[1750853537874,8.56072194,145.92,145.84,5.72035504]
[1750853538075,5.1762669,145.91,145.84,5.72035504]
[1750853538374,3.38445504,145.92,145.84,5.72035504]
[1750853538571,5.18063771,145.91,145.84,5.72035504]
[1750853538770,3.38445504,145.92,145.84,5.72035504]
[1750853539073,5.18063803,145.91,145.84,5.72035504]
[1750853539276,5.18241533,145.9,145.84,5.72035504]
[1750853539475,3.38445504,145.92,145.84,5.72035504]
[1750853539672,5.18220258,145.91,145.84,5.72035504]
[1750853539872,5.18220258,145.9,145.84,5.72035504]
[1750853540077,3.38445504,145.92,145.84,5.72035504]
[1750853540278,5.18219242,145.91,145.84,5.72035504]
[1750853540476,3.38445504,145.92,145.84,5.72035504]
[1750853540777,5.18208448,145.91,145.84,5.72035504]
[1750853540983,3.38445504,145.92,145.91,6.8504]
[1750853541174,8.57060068,145.92,145.91,6.8504]
[1750853541775,3.38445504,145.92,145.91,6.8504]
[1750853542283,10.23445504,145.92,145.9,6.8506]
[1750853542478,5.17935116,145.91,145.9,6.8506]
[1750853542988,5.17935116,145.91,145.89,6.8511]
[1750853543180,8.5638062,145.9,145.89,6.8511]
[1750853545697,8.5638062,145.9,145.84,2.3359]
[1750853545899,3.38445504,145.9,145.84,2.3359]
[1750853546100,5.19235804,145.89,145.88,6.8518]
[1750853547898,3.38445504,145.92,145.91,6.8504]
[1750853548195,13.14614744,145.92,145.91,6.8504]
[1750853550499,9.7616924,145.92,145.91,6.8504]
[1750853550806,5.20239234,145.92,145.86,25.51554945]
[1750853550994,5.20239234,145.91,145.86,25.51554945]
[1750853551302,4.57465329,145.93,145.87,2.2744]
[1750853551602,5.20278725,145.92,145.91,6.8504]
[1750853555710,9.78814118,145.92,145.91,6.8504]
[1750853555911,9.80101411,145.92,145.91,6.8504]
[1750853556408,38.04445504,145.94,145.92,6.8497]
[1750853556600,9.82936353,145.93,145.92,6.8497]
[1750853562108,38.04445504,145.94,145.92,6.8497]
[1750853562312,34.66,145.94,145.93,6.8495]
[1750853562506,9.814651,145.94,145.93,6.8495]
[1750853564013,5.20461588,145.94,145.93,6.8495]
[1750853565017,3.38445504,145.96,145.95,6.8485]
[1750853565315,12.84367816,145.96,145.95,6.8485]
[1750853569216,12.84367816,145.96,145.89,15.01768548]
[1750853569217,12.84367816,145.96,145.9,8.52905699]
[1750853569416,5.17095511,145.95,145.91,8.52905699]
[1750853569616,5.17095511,145.94,145.91,8.52905699]
[1750853569813,7.67272305,145.96,145.95,6.8485]
[1750853570014,12.84482738,145.96,145.95,6.8485]
[1750853570413,8.55655937,145.96,145.95,6.8485]
[1750853570719,34.56,145.97,145.96,6.8481]
[1750853571017,39.73105453,145.97,145.96,6.8481]
[1750853573821,39.73105453,145.97,145.95,6.8484]
[1750853574020,8.55550957,145.96,145.95,6.8484]
[1750853575211,8.55550957,145.96,145.91,34.56]
[1750853575212,8.55550957,145.96,145.91,43.08905699]
[1750853575519,5.17105453,145.95,145.91,8.52905699]
[1750853575712,3.38445504,145.96,145.94,6.849]
[1750853575915,5.17956088,145.95,145.94,6.849]
[1750853579412,3.38445504,145.96,145.95,6.8485]
[1750853579609,8.56291851,145.96,145.95,6.8485]
[1750853580622,8.56291851,145.96,145.9,8.52905699]
[1750853580826,5.17846347,145.95,145.9,8.52905699]
[1750853581018,3.38445504,145.96,145.9,8.52905699]
[1750853581315,5.16595102,145.95,145.94,6.8486]
[1750853582123,3.38445504,145.96,145.94,6.8486]
[1750853582323,5.1656036,145.95,145.94,6.8486]
[1750853585029,37.94445504,145.97,145.96,6.8481]
[1750853585228,43.10627292,145.97,145.96,6.8481]
[1750853586127,39.72181788,145.97,145.96,6.8481]
[1750853586318,43.10627292,145.97,145.96,6.8481]
[1750853590627,47.38768764,145.97,145.96,6.8481]
[1750853590830,43.10627292,145.97,145.96,6.8481]
[1750853591424,47.38768764,145.97,145.96,6.8481]
[1750853591622,44.0032326,145.97,145.96,6.8481]
[1750853592133,39.72582524,145.97,145.96,6.8481]
[1750853592732,34.56,145.97,145.96,6.8481]
[1750853593232,37.94445504,145.97,145.96,6.8481]
[1750853593631,43.11249617,145.97,145.96,6.8481]
[1750853594221,37.94445504,145.97,145.96,6.8481]
[1750853594831,43.11249617,145.97,145.96,6.8481]
[1750853595332,43.10557775,145.97,145.96,6.8481]
[1750853595535,47.35905508,145.97,145.91,8.52905699]
[1750853595835,3.38445504,145.93,145.87,8.52905699]
[1750853596138,3.38445504,145.9,145.89,6.851]
[1750853596435,8.54878427,145.9,145.89,6.851]
[1750853597133,8.54878427,145.9,145.88,6.8517]
[1750853597438,10.23535504,145.9,145.87,8.52905699]
[1750853597733,5.16120684,145.89,145.86,8.52905699]
[1750853597934,3.38445504,145.88,145.86,8.52905699]
[1750853598540,3.38445504,145.88,145.87,6.8523]
[1750853600240,8.54680845,145.88,145.84,8.52905699]
[1750853600440,3.38445504,145.88,145.84,8.52905699]
[1750853601337,3.38445504,145.88,145.87,6.8523]
[1750853601538,8.54139848,145.88,145.87,6.8523]
[1750853602140,8.54126561,145.88,145.87,6.8523]
[1750853602338,3.38445504,145.88,145.87,6.8523]
[1750853603940,8.53712768,145.88,145.87,6.8523]
[1750853604142,3.38445504,145.88,145.87,6.8523]
[1750853605841,10.23635504,145.88,145.86,6.8526]
[1750853606144,34.54,145.87,145.83,13.13595699]
[1750853606439,3.38445504,145.86,145.85,6.8532]
[1750853606642,34.54,145.87,145.83,4.6069]
[1750853606843,3.38445504,145.89,145.83,13.13595699]
[1750853607743,34.54,145.9,145.83,16.52041203]
[1750853607946,34.54,145.9,145.85,11.91351203]
[1750853608146,5.14408286,145.92,145.85,11.91351203]
[1750853608344,37.92445504,145.93,145.9,6.8506]
[1750853608546,3.38445504,145.91,145.9,6.8506]
[1750853610040,8.52828257,145.91,145.9,6.8506]
[1750853610443,3.38445504,145.91,145.9,6.8506]
[1750853614648,8.50453765,145.91,145.9,6.8506]
[1750853617849,8.51680107,145.91,145.9,6.8506]
[1750853618353,8.51894423,145.91,145.9,6.8506]
[1750853618853,8.51908601,145.91,145.9,6.8506]
[1750853620248,8.51183673,145.91,145.9,6.8506]
[1750853622560,3.38445504,145.91,145.9,6.8506]
[1750853622752,8.51298793,145.91,145.9,6.8506]
[1750853623752,8.51298793,145.91,145.84,13.7075]
[1750853624052,3.38445504,145.89,145.84,13.7075]
[1750853624249,37.92445504,145.89,145.84,13.7075]
[1750853625660,37.92445504,145.89,145.84,22.23655699]
[1750853626063,37.92445504,145.89,145.88,6.8518]
[1750853630452,42.9983258,145.89,145.88,6.8518]
[1750853631562,37.92445504,145.89,145.88,6.8518]
[1750853631764,42.99832612,145.89,145.88,6.8518]
[1750853634164,37.92445504,145.89,145.88,6.8518]
[1750853634365,43.00392823,145.89,145.88,6.8518]
[1750853636354,47.20948179,145.89,145.88,6.8518]
[1750853637057,43.00392823,145.89,145.88,6.8518]
[1750853637261,47.21729764,145.89,145.88,6.8518]
[1750853637463,43.00392823,145.89,145.88,6.8518]
[1750853637865,47.21729764,145.89,145.88,6.8518]
[1750853638163,43.00392823,145.89,145.88,6.8518]
[1750853640066,43.01163301,145.89,145.88,6.8518]
[1750853643067,43.01201407,145.89,145.88,6.8518]
[1750853644272,41.79218799,145.89,145.88,6.8518]
[1750853644765,46.00914967,145.89,145.84,8.52905699]
[1750853645069,46.00914967,145.89,145.83,4.6069]
[1750853645070,2.16462896,145.85,145.83,13.13595699]
[1750853645263,2.16462896,145.84,145.83,13.13595699]
[1750853645665,2.16462896,145.84,145.83,19.99015699]
[1750853645865,7.25324593,145.84,145.83,19.99015699]
[1750853646168,7.25324593,145.84,145.83,15.38325699]
[1750853646365,37.92413778,145.85,145.83,8.52905699]
[1750853646566,37.92413778,145.85,145.84,6.8537]
[1750853646872,43.01031349,145.85,145.84,6.8537]
[1750853650271,43.01031349,145.85,145.79,6.8836]
[1750853650272,43.01031349,145.85,145.83,6.854]
[1750853650576,8.47031349,145.84,145.83,6.854]
[1750853651177,8.47031349,145.84,145.81,8.52905699]
[1750853651471,3.38413778,145.82,145.79,8.52905699]
[1750853651677,34.56,145.81,145.8,6.8556]
[1750853658183,39.57364475,145.81,145.79,6.8558]
[1750853658484,8.39778253,145.8,145.73,15.55745699]
[1750853658681,3.38413778,145.77,145.76,6.8575]
[1750853658880,37.92413778,145.77,145.76,6.8575]
[1750853661374,34.54,145.81,145.73,10.41253778]
[1750853661578,34.54,145.81,145.74,8.52905699]
[1750853661773,3.38413778,145.8,145.74,8.52905699]
[1750853661978,3.38413778,145.8,145.79,6.8561]
[1750853662178,3.38413778,145.8,145.73,15.55745699]
[1750853662383,3.38413778,145.77,145.73,7.0284]
[1750853662675,37.92413778,145.77,145.73,7.0284]
[1750853662878,37.92413778,145.77,145.76,6.8575]
[1750853664686,37.92413778,145.77,145.7,8.52905699]
[1750853664687,34.54,145.77,145.7,8.52905699]
[1750853664988,3.38413778,145.75,145.7,13.28825699]
[1750853665189,3.38413778,145.75,145.74,6.8584]
[1750853665585,3.38413778,145.75,145.7,4.7592]
[1750853666985,3.38413778,145.75,145.74,6.8584]
[1750853667889,3.38413778,145.75,145.73,6.8587]
[1750853668291,3.38413778,145.75,145.74,6.8584]
[1750853668487,3.38413778,145.75,145.7,4.7592]
[1750853668694,3.38413778,145.73,145.7,4.7592]
[1750853668888,37.92413778,145.73,145.72,6.8594]
[1750853669585,37.92413778,145.73,145.66,43.06905699]
[1750853669791,34.54,145.73,145.68,3.38413778]
[1750853670192,34.54,145.73,145.72,6.8594]
[1750853670785,37.92413778,145.73,145.72,6.8594]
[1750853672993,37.92413778,145.73,145.67,4.6476]
[1750853673296,37.92413778,145.73,145.67,6.8654]
[1750853673491,37.92413778,145.73,145.71,6.8596]
[1750853674491,37.92413778,145.73,145.72,6.8594]
[1750853674699,37.92413778,145.73,145.67,6.8654]
[1750853675191,37.92413778,145.73,145.69,6.8605]
[1750853675392,6.8596,145.72,145.69,6.8605]
[1750853676898,37.92413778,145.73,145.67,6.8654]
[1750853677398,37.92413778,145.73,145.7,6.8602]
[1750853677900,37.92413778,145.73,145.69,6.8605]
[1750853678100,37.92413778,145.73,145.67,6.8654]
[1750853678608,37.92413778,145.73,145.71,6.8598]
[1750853679199,37.92413778,145.73,145.7,6.8601]
[1750853679395,37.92413778,145.73,145.67,6.8654]
[1750853680198,3.38413778,145.7,145.63,34.56]
[1750853680704,34.56,145.69,145.67,6.8615]
[1750853680902,34.56,145.69,145.63,34.56]
[1750853681200,34.56,145.69,145.68,6.8612]
[1750853683306,34.56,145.69,145.67,6.8615]
[1750853684299,3.38413778,145.68,145.67,6.8615]
[1750853687406,34.56,145.69,145.68,6.8612]
[1750853691810,3.38413778,145.71,145.7,6.8603]
[1750853692006,3.38413778,145.71,145.65,3.38413778]
[1750853692007,3.38413778,145.71,145.64,34.54]
[1750853692308,3.38413778,145.71,145.69,6.8603]
[1750853694314,37.92413778,145.71,145.7,6.8603]
[1750853696614,34.54,145.71,145.7,6.8603]
[1750853697013,34.54,145.74,145.73,6.8588]
[1750853697813,39.4799605,145.74,145.73,6.8588]
[1750853698116,39.47996122,145.74,145.73,6.8588]
[1750853698317,34.54,145.74,145.73,6.8588]
[1750853698520,39.4799612,145.74,145.73,6.8588]
[1750853698715,10.24223778,145.75,145.73,6.8588]
[1750853698920,34.54,145.74,145.73,6.8588]
[1750853699515,39.48461377,145.74,145.73,6.8588]
[1750853699810,46.34381127,145.74,145.72,6.8591]
[1750853700009,3.38413778,145.73,145.72,6.8591]
[1750853702320,8.35099193,145.73,145.68,7.0418]
[1750853702519,3.38413778,145.71,145.66,8.52905699]
[1750853702721,3.38413778,145.71,145.64,43.06905699]
[1750853703227,3.38413778,145.71,145.69,6.8606]
[1750853704426,34.54,145.7,145.69,6.8606]
[1750853705526,37.92413778,145.73,145.66,15.31665699]
[1750853705824,4.97181461,145.72,145.66,15.31665699]
[1750853706024,42.40782418,145.73,145.66,15.31665699]
[1750853706233,4.97156774,145.72,145.66,15.31665699]
[1750853706415,37.92413778,145.73,145.66,15.31665699]
[1750853706416,49.26251256,145.73,145.66,15.31665699]
[1750853706616,4.9715674,145.72,145.66,15.31665699]
[1750853706818,44.78303778,145.73,145.66,15.31665699]
[1750853707030,4.97205211,145.72,145.71,6.8596]
[1750853707327,37.92413778,145.73,145.71,6.8596]
[1750853707530,42.40434246,145.73,145.71,6.8596]
[1750853707830,37.92413778,145.73,145.72,6.8594]
[1750853708128,47.36818296,145.73,145.71,6.8596]
[1750853708327,4.96413309,145.72,145.71,6.8596]
[1750853709323,4.96746144,145.72,145.71,6.8596]
[1750853709926,4.96747198,145.72,145.71,6.8596]
[1750853710226,37.92413778,145.73,145.72,6.8594]
[1750853710428,47.3783553,145.73,145.72,6.8594]
[1750853710721,42.89185812,145.73,145.72,6.8594]
[1750853711130,47.37818555,145.73,145.72,6.8594]
[1750853711623,54.23718555,145.73,145.71,6.8596]
[1750853711827,4.96772034,145.72,145.71,6.8596]
[1750853712014,44.78313778,145.73,145.71,6.8596]
[1750853712215,4.97017492,145.72,145.71,6.8596]
[1750853712621,9.45809233,145.72,145.71,6.8596]
[1750853713426,4.97017492,145.72,145.71,6.8596]
[1750853716033,34.54,145.73,145.72,6.8594]
[1750853716238,44.01228054,145.73,145.72,6.8594]
[1750853716533,4.97877925,145.73,145.72,6.8594]
[1750853717636,9.46612169,145.73,145.72,6.8594]
[1750853717835,9.46612169,145.73,145.69,8.52905699]
[1750853717836,4.48734244,145.73,145.69,8.52905699]
[1750853718028,12.85320368,145.72,145.68,8.52905699]
[1750853718233,4.98172346,145.71,145.68,8.52905699]
[1750853718438,37.92413778,145.72,145.7,6.8601]
[1750853718735,4.98143174,145.71,145.7,6.8601]
[1750853720736,37.92413778,145.72,145.7,6.8601]
[1750853720930,4.98450399,145.71,145.7,6.8601]
[1750853722840,16.3320142,145.71,145.68,8.52905699]
[1750853723043,8.36864177,145.7,145.67,8.52905699]
[1750853723337,3.38413778,145.7,145.67,8.52905699]
[1750853723545,10.24443778,145.7,145.68,6.861]
[1750853724957,11.83605183,145.69,145.67,6.8615]
[1750853725259,6.861,145.69,145.67,6.8615]
[1750853726056,15.22046697,145.68,145.66,6.8619]
[1750853726256,34.54,145.72,145.66,8.52905699]
[1750853726257,7.86342112,145.71,145.66,8.52905699]
[1750853726555,9.45520757,145.7,145.69,6.8604]
[1750853726858,4.97532934,145.7,145.69,6.8604]
[1750853727160,9.45542749,145.7,145.69,6.8604]
[1750853729258,4.97532934,145.7,145.69,6.8604]